bitfinex-derivatives/quotes_ETHF0:USTF0_20241230
["timestamp","ask_amount","ask_price","bid_price","bid_amount"]
[1735597119046,1.2947,3349.0,3348.0,2.91588588]
[1735597119247,0.29915,3348.6,3348.3,0.29916]
[1735597119440,1.2947,3349.0,3348.0,2.91588588]
[1735597119748,0.29916,3348.5,3348.2,0.29917]
[1735597120246,3.2078,3348.7,3347.7,45.4948]
[1735597120445,0.29921,3347.9,3347.7,44.0078]
[1735597121047,1.2705,3348.1,3347.7,40.8]
[1735597121048,3.50701,3347.8,3347.7,40.8]
[1735597122642,3.2078,3347.8,3347.0,0.29928]
[1735597122847,2.5503,3347.7,3346.8,3.21518588]
[1735597123046,2.5503,3347.7,3346.8,0.2993]
[1735597123247,3.29838,3347.7,3346.9,40.8]
[1735597123453,0.29927,3347.2,3346.9,40.8]
[1735597123655,1.2076,3347.1,3346.9,40.8]
[1735597124048,2.5503,3347.7,3346.9,40.8]
[1735597124260,1.2373,3347.6,3346.9,40.8]
[1735597124447,1.2373,3347.6,3347.3,0.29925]
[1735597124657,1.53653,3347.6,3347.2,0.29926]
[1735597124855,1.53653,3347.6,3346.9,40.8]
[1735597125053,1.53653,3347.6,3347.3,0.29926]
[1735597125853,1.53653,3347.6,3347.2,0.29926]
[1735597126056,1.2373,3347.6,3346.9,40.8]
[1735597126358,1.2373,3347.6,3347.4,0.29925]
[1735597127551,1.2373,3347.6,3347.3,0.29926]
[1735597127761,1.2373,3347.6,3347.2,2.91588588]
[1735597127961,1.2373,3347.6,3347.4,0.29924]
[1735597128450,1.2373,3347.6,3346.9,40.8]
[1735597128654,0.29928,3347.1,3346.9,40.8]
[1735597128854,1.2571,3347.5,3346.9,40.8]
[1735597129158,4.4649,3347.5,3346.9,40.8]
[1735597129357,0.29925,3347.4,3347.0,0.29928]
[1735597129558,4.4649,3347.5,3346.9,41.09929]
[1735597129559,0.29926,3347.3,3346.9,41.09929]
[1735597130055,4.4649,3347.5,3346.9,40.8]
[1735597130260,0.29932,3346.6,3346.5,9.42249575]
[1735597130654,0.29932,3346.6,3346.5,50.22249575]
[1735597131262,0.29932,3346.6,3346.5,9.42249575]
[1735597131652,0.29932,3346.6,3346.3,40.8]
[1735597134859,1.2772,3346.8,3346.3,40.8]
[1735597135048,0.29934,3346.5,3346.3,40.8]
[1735597135250,0.29934,3346.5,3346.0,3.50717]
[1735597135251,6.12368588,3346.5,3345.5,9.42249575]
[1735597135558,6.12368588,3346.5,3345.7,2.91588588]
[1735597135559,3.2078,3346.5,3345.7,2.91588588]
[1735597135856,3.2078,3346.5,3346.1,0.29936]
[1735597136064,3.2078,3346.5,3346.1,2.91588588]
[1735597136358,3.2078,3346.5,3346.4,0.29934]
[1735597136956,3.2078,3347.1,3346.4,3.2078]
[1735597137157,3.50708,3347.1,3346.6,0.29932]
[1735597137463,3.2078,3347.1,3346.8,0.2993]
[1735597137659,3.2078,3347.1,3346.5,2.91588588]
[1735597137855,3.2078,3347.1,3346.8,0.2993]
[1735597138558,3.50708,3347.1,3346.8,0.2993]
[1735597139361,3.2078,3347.1,3346.5,2.91588588]
[1735597139562,0.29929,3347.0,3346.7,0.2993]
[1735597140359,0.2993,3346.9,3346.6,0.29932]
[1735597140557,3.2078,3347.1,3346.4,3.2078]
[1735597140762,0.29933,3346.5,3346.4,3.2078]
[1735597141257,1.2006,3346.7,3346.4,3.2078]
[1735597141463,0.29933,3346.6,3346.4,3.2078]
[1735597141852,1.2006,3346.7,3346.4,3.2078]
[1735597142053,0.29933,3346.5,3346.4,3.2078]
[1735597142253,0.29932,3346.6,3346.4,3.2078]
[1735597142654,0.29933,3346.5,3346.4,3.2078]
[1735597142859,0.29933,3346.5,3346.1,0.29936]
[1735597143663,0.29933,3346.5,3346.2,0.29936]
[1735597143974,0.29933,3346.6,3346.0,3.2078]
[1735597144267,0.29933,3346.6,3346.2,0.29935]
[1735597144757,2.5099,3346.7,3346.2,0.29935]
[1735597144758,0.29933,3346.5,3346.2,0.29935]
[1735597146463,2.5099,3346.7,3346.6,0.29932]
[1735597146666,1.2006,3346.7,3346.1,2.91588588]
[1735597146863,1.2006,3346.7,3346.0,3.2078]
[1735597146864,0.29932,3346.6,3346.3,0.29934]
[1735597147362,0.29932,3346.6,3346.4,0.29934]
[1735597147760,1.49992,3346.7,3346.0,3.2078]
[1735597148067,0.29932,3346.6,3346.4,0.29933]
[1735597148265,4.75408,3347.1,3346.9,0.29929]
[1735597148767,4.75408,3347.1,3347.0,40.8]
[1735597149961,4.4548,3347.1,3346.0,3.2078]
[1735597150160,4.4548,3347.1,3346.3,0.29934]
[1735597150161,0.29934,3346.5,3346.3,0.29934]
[1735597150965,0.29934,3346.5,3346.4,0.29934]
[1735597151561,0.29933,3346.5,3346.4,0.29934]
[1735597151961,4.4548,3347.1,3346.9,0.29929]
[1735597152162,0.29928,3347.0,3346.9,0.29929]
[1735597152563,0.29928,3347.0,3346.9,41.09929]
[1735597152866,0.29928,3347.0,3346.9,40.8]
[1735597153174,4.4548,3347.1,3346.5,0.29932]
[1735597153465,4.4548,3347.1,3346.3,2.26754196]
[1735597153664,0.2993,3346.9,3346.7,0.2993]
[1735597153869,4.4548,3347.1,3346.4,40.8]
[1735597154070,4.4548,3347.1,3346.6,0.29931]
[1735597154279,0.29931,3346.8,3346.6,0.29931]
[1735597154959,4.4548,3347.1,3346.4,40.8]
[1735597155462,0.29931,3346.8,3346.5,0.29932]
[1735597158567,4.4548,3347.1,3346.4,40.8]
[1735597158771,1.2805,3346.7,3346.4,40.8]
[1735597158971,0.29932,3346.6,3346.4,40.8]
[1735597159367,1.2805,3346.7,3346.4,40.8]
[1735597159570,0.29929,3347.0,3346.5,0.29932]
[1735597160074,4.4548,3347.1,3346.5,0.29932]
[1735597160273,0.29929,3346.9,3346.5,0.29932]
[1735597160676,0.29931,3346.8,3346.4,41.09933]
[1735597160974,0.2993,3346.9,3346.5,0.29933]
[1735597161280,0.2993,3346.8,3346.4,41.09933]
[1735597162176,0.2993,3346.8,3346.5,0.29933]
[1735597162476,0.2993,3346.9,3346.5,0.29933]
[1735597163578,4.75408,3347.1,3346.8,0.2993]
[1735597164374,0.29929,3347.0,3346.8,0.2993]
[1735597165379,4.4548,3347.1,3346.4,40.8]
[1735597165571,0.29929,3347.0,3346.7,0.2993]
[1735597165876,0.29929,3347.0,3346.4,40.8]
[1735597166078,0.29929,3347.0,3346.8,0.2993]
[1735597166872,0.29932,3346.7,3346.5,0.29933]
[1735597167077,4.4548,3347.1,3346.4,7.01734979]
[1735597167078,0.29933,3346.5,3346.4,7.01734979]
[1735597167278,0.29932,3346.6,3346.4,7.31667979]
[1735597167671,0.29933,3346.5,3346.4,7.01734979]
[1735597168076,2.26754196,3347.0,3346.4,7.01734979]
[1735597168274,0.29932,3346.6,3346.4,7.01734979]
[1735597168474,1.2813,3346.5,3346.4,7.01734979]
[1735597168678,1.58063,3346.5,3346.4,7.01734979]
[1735597169275,1.58063,3346.5,3346.3,7.31669979]
[1735597169475,1.58063,3346.5,3346.3,7.01734979]
[1735597170180,0.29934,3346.4,3346.3,7.01734979]
[1735597170481,0.29934,3346.4,3346.1,50.22249575]
[1735597170482,0.29936,3346.2,3346.1,3.08264554]
[1735597170683,5.47534196,3346.2,3345.9,9.81141968]
[1735597170871,0.29937,3346.0,3345.9,4.74042968]
[1735597171074,0.29937,3346.0,3345.9,3.17278968]
[1735597171276,3.2078,3346.2,3345.9,3.17278968]
[1735597171578,0.29937,3346.1,3345.8,0.29939]
[1735597171785,0.29938,3346.0,3345.9,0.5399]
[1735597172186,5.80752798,3346.1,3346.0,0.29937]
[1735597173092,5.80752798,3346.1,3345.9,0.5399]
[1735597173093,0.29935,3346.3,3346.1,0.29936]
[1735597173287,3.2078,3346.6,3345.9,0.5399]
[1735597173582,0.29937,3346.0,3345.9,0.5399]
[1735597173785,3.2078,3346.2,3345.6,40.8]
[1735597173983,3.2078,3346.4,3345.6,2.26754196]
[1735597174286,6.676717,3346.4,3345.8,3.2078]
[1735597174486,6.976057,3346.4,3346.2,0.29935]
[1735597174786,0.29935,3346.3,3346.1,0.29936]
[1735597175281,0.29935,3346.3,3346.0,0.29937]
[1735597175582,3.2078,3346.4,3345.9,42.0195]
[1735597175979,3.2078,3346.4,3345.9,42.31888]
[1735597176179,0.29936,3346.2,3345.9,42.31888]
[1735597176483,0.29936,3346.1,3345.9,42.31888]
[1735597176689,0.29937,3346.0,3345.9,40.8]
[1735597176883,3.2078,3346.0,3345.4,2.1558]
[1735597177185,0.29938,3346.0,3345.7,0.29939]
[1735597177486,3.2078,3346.4,3345.6,40.8]
[1735597177688,0.29936,3346.2,3345.9,0.29937]
[1735597178476,3.2078,3346.4,3345.8,0.29939]
[1735597178477,0.29937,3346.1,3345.8,0.29939]
[1735597178686,3.2078,3346.0,3345.6,40.8]
[1735597178890,3.2078,3346.0,3345.4,2.1558]
[1735597179181,0.29935,3346.3,3345.5,1.51131]
[1735597179385,3.2078,3346.0,3345.6,40.8]
[1735597179581,0.29939,3345.9,3345.6,41.09941]
[1735597179781,0.29939,3345.8,3345.6,40.8]
[1735597180000,3.2078,3346.0,3345.6,40.8]
[1735597180187,0.2994,3345.7,3345.6,40.8]
[1735597180389,3.2078,3346.0,3345.5,1.2119]
[1735597180687,0.29941,3345.6,3345.5,1.2119]
[1735597180881,3.2078,3345.6,3345.0,40.8]
[1735597181086,0.29945,3345.2,3345.0,40.8]
[1735597181289,3.2078,3345.6,3345.0,41.991]
[1735597181290,0.29945,3345.1,3345.0,41.991]
[1735597181981,3.50725,3345.1,3345.0,41.991]
[1735597182587,3.50725,3345.1,3345.0,1.191]
[1735597183585,3.2078,3345.1,3344.7,1.2063]
[1735597183786,0.29948,3344.8,3344.7,1.2063]
[1735597191585,4.16432,3344.7,3343.5,6.95650236]
[1735597191885,0.29955,3344.0,3343.8,0.29956]
[1735597192085,0.29955,3344.0,3343.9,40.8]
[1735597192285,5.47534196,3344.5,3343.9,41.09956]
[1735597192487,3.2078,3344.5,3343.9,40.8]
[1735597192686,4.16432,3344.7,3344.4,2.26754196]
[1735597192891,3.2078,3344.9,3344.6,0.29949]
[1735597193193,3.50727,3344.9,3344.6,0.2995]
[1735597193390,3.50727,3344.9,3344.7,40.8]
[1735597193579,3.2078,3344.9,3344.7,40.8]
[1735597193784,0.29948,3344.8,3344.7,40.8]
[1735597194190,3.2078,3344.9,3344.5,2.5419]
[1735597194506,3.2078,3344.9,3344.8,0.29948]
[1735597194689,3.2078,3344.9,3344.8,41.09948]
[1735597194882,3.50728,3344.9,3344.7,0.29948]
[1735597195079,3.2078,3344.9,3344.5,2.5419]
[1735597195278,3.2078,3344.9,3344.8,0.29948]
[1735597195887,3.50723,3345.4,3345.2,0.29943]
[1735597196089,3.50723,3345.4,3345.3,1.261]
[1735597196793,3.2078,3345.4,3345.3,1.56043]
[1735597197492,3.2078,3346.0,3345.9,0.29938]
[1735597197889,3.50717,3346.0,3345.9,0.29938]
[1735597199091,0.29943,3345.4,3345.3,1.261]
[1735597199290,3.2078,3346.1,3345.3,1.261]
[1735597199599,0.2994,3345.7,3345.6,0.2994]
[1735597200097,0.2994,3345.7,3345.5,0.29941]
[1735597200290,0.29941,3345.6,3345.5,0.29941]
[1735597200487,0.2994,3345.7,3345.5,0.29941]
[1735597201393,0.2994,3345.7,3345.6,0.29941]
[1735597201699,0.29938,3346.0,3345.3,1.261]
[1735597201894,0.29938,3345.9,3345.7,0.29939]
[1735597202098,0.29938,3345.9,3345.8,0.29939]
[1735597202288,3.2078,3346.1,3345.3,1.261]
[1735597202493,0.29942,3345.5,3345.4,0.29943]
[1735597202688,0.29942,3345.5,3345.3,1.56043]
[1735597202892,0.29941,3345.6,3345.3,1.56043]
[1735597203101,0.29943,3345.4,3345.3,1.261]
[1735597205301,0.29943,3345.4,3344.8,0.29948]
[1735597205302,0.29947,3344.9,3344.8,0.29948]
[1735597205492,3.2078,3345.1,3344.3,3.2078]
[1735597205692,0.29948,3344.8,3344.6,0.29949]
[1735597205903,0.29949,3344.7,3344.6,0.29949]
[1735597206093,0.29949,3344.7,3344.6,0.2995]
[1735597206292,0.29951,3344.5,3344.4,41.09951]
[1735597206497,0.29951,3344.5,3344.4,0.29951]
[1735597207104,0.29951,3344.5,3344.3,41.09952]
[1735597207992,0.2995,3344.6,3344.3,40.8]
[1735597208195,0.2995,3344.6,3344.3,41.09952]
[1735597209101,0.2995,3344.6,3344.3,40.8]
[1735597209500,0.29951,3344.5,3344.3,40.8]
[1735597209803,0.2995,3344.6,3344.3,40.8]
[1735597210104,0.2995,3344.6,3344.3,41.09952]
[1735597210306,0.2995,3344.6,3344.3,40.8]
[1735597210496,0.29951,3344.5,3344.2,2.78303]
[1735597210704,0.29951,3344.5,3344.2,2.4835]
[1735597211002,0.29951,3344.5,3344.2,43.2835]
[1735597211205,0.29951,3344.4,3344.2,43.2835]
[1735597211505,0.29952,3344.4,3344.2,43.2835]
[1735597211908,3.2078,3344.7,3344.2,42.0863]
[1735597211909,0.29952,3344.3,3344.2,42.0863]
[1735597212607,0.29952,3344.3,3344.2,1.2863]
[1735597213300,0.29954,3344.2,3343.9,40.8]
[1735597213803,0.29954,3344.2,3343.8,2.85886]
[1735597214207,2.26754196,3344.0,3343.8,1.235]
[1735597214413,0.29956,3343.9,3343.8,1.235]
[1735597214706,3.2078,3344.2,3343.8,1.235]
[1735597215400,2.26754196,3344.8,3343.9,1.3332]
[1735597215401,2.30334382,3344.6,3343.9,1.3332]
[1735597215605,0.29955,3344.1,3343.9,1.3332]
[1735597215811,3.2078,3344.3,3343.9,1.3332]
[1735597216005,3.2078,3344.3,3344.0,0.29954]
[1735597216211,3.2078,3344.3,3343.9,1.3332]
[1735597216413,3.50733,3344.3,3343.9,1.63276]
[1735597216607,3.2078,3344.3,3343.9,1.3332]
[1735597216807,0.29955,3344.0,3343.9,1.3332]
[1735597217010,3.2078,3344.3,3343.9,1.3332]
[1735597217011,0.29954,3344.1,3343.9,1.3332]
[1735597217204,3.2078,3344.3,3343.9,2.627]
[1735597217407,0.29955,3344.0,3343.9,2.627]
[1735597217906,0.29955,3344.0,3343.9,1.2938]
[1735597218319,0.29956,3343.9,3343.8,1.235]
[1735597218611,0.29956,3343.9,3343.4,2.627]
[1735597218612,5.47534196,3343.9,3343.4,2.627]
[1735597218916,5.47534196,3343.9,3343.4,3.9238]
[1735597219102,0.29959,3343.5,3343.4,3.9238]
[1735597219304,5.47534196,3343.9,3343.4,3.9238]
[1735597219807,0.29959,3343.6,3343.4,3.9238]
[1735597220213,5.47534196,3343.9,3343.4,3.9238]
[1735597220214,0.29959,3343.5,3343.4,3.9238]
[1735597220409,0.29959,3343.5,3343.4,1.2968]
[1735597220605,3.50739,3343.5,3343.4,1.2968]
[1735597221517,0.29963,3343.1,3343.0,1.3207]
[1735597221709,3.2078,3343.5,3343.0,1.3207]
[1735597221908,0.29962,3343.3,3343.0,1.3207]
[1735597222108,0.29963,3343.2,3343.0,1.3207]
[1735597222515,0.29963,3343.1,3343.0,1.3207]
[1735597222816,3.2078,3343.5,3343.0,1.3207]
[1735597222817,0.29963,3343.2,3343.0,1.3207]
[1735597223004,3.2078,3343.5,3343.0,1.3207]
[1735597223005,0.29963,3343.1,3343.0,1.3207]
[1735597224113,3.2078,3343.5,3343.0,1.3207]
[1735597224415,0.29963,3343.1,3343.0,1.3207]
[1735597226417,3.2078,3343.5,3343.0,1.3207]
[1735597226418,0.29962,3343.2,3343.0,1.3207]
[1735597227016,0.29963,3343.1,3343.0,1.3207]
[1735597227411,0.29963,3343.1,3343.0,42.1207]
[1735597227612,0.29963,3343.1,3343.0,1.3207]
[1735597229813,0.29963,3343.1,3342.6,44.0078]
[1735597229814,3.2078,3343.1,3342.6,44.0078]
[1735597230020,0.29965,3342.9,3342.6,3.2078]
[1735597230216,0.29967,3342.8,3342.7,1.3259]
[1735597231020,2.26754196,3343.0,3342.1,2.6099]
[1735597231221,0.29969,3342.6,3342.2,1.57661]
[1735597231417,2.26754196,3343.0,3342.2,1.2769]
[1735597231615,0.29969,3342.5,3342.3,40.8]
[1735597232320,0.29969,3342.6,3342.3,40.8]
[1735597232521,0.29969,3342.5,3342.3,40.8]
[1735597233723,0.2997,3342.4,3342.2,1.2769]
[1735597233935,0.2997,3342.4,3342.2,1.57662]
[1735597234124,3.2078,3342.7,3342.2,1.2769]
[1735597234125,5.47534196,3342.7,3342.2,1.2769]
[1735597234427,0.29971,3342.3,3342.2,1.2769]
[1735597235016,0.29971,3342.3,3341.4,3.2078]
[1735597235017,3.2078,3342.3,3341.4,3.2078]
[1735597235325,0.29978,3341.5,3341.4,1.2454]
[1735597235619,3.50758,3341.5,3341.4,1.2454]
[1735597237424,0.29983,3340.9,3340.8,1.2327]
[1735597237816,2.56737196,3340.9,3340.8,1.2327]
[1735597238030,5.77517196,3340.9,3340.8,1.2327]
[1735597238327,5.47534196,3340.9,3340.2,1.3139]
[1735597238525,0.29989,3340.3,3340.2,1.3139]
[1735597239124,2.26754196,3340.4,3340.1,4.6889604]
[1735597239426,2.26754196,3340.4,3339.6,3.2078]
[1735597239427,7.26754196,3340.4,3339.6,3.2078]
[1735597239730,3.2078,3340.5,3339.6,3.2078]
[1735597239731,0.29993,3339.8,3339.6,3.2078]
[1735597239921,5.47534196,3340.1,3339.6,3.2078]
[1735597240226,0.29993,3339.9,3339.7,2.6129]
[1735597240426,0.29991,3340.0,3339.7,2.6129]
[1735597240623,0.29993,3339.9,3339.7,2.6129]
[1735597241222,0.29993,3339.9,3339.6,3.50775]
[1735597241223,0.29993,3339.9,3339.6,3.2078]
[1735597241423,5.47534196,3340.1,3339.2,1.3139]
[1735597241424,2.26754196,3339.8,3339.2,1.3139]
[1735597241626,0.29995,3339.6,3339.3,0.29997]
[1735597241823,2.26754196,3339.8,3339.2,42.1139]
[1735597242016,2.26754196,3339.8,3339.3,0.29997]
[1735597242017,0.29994,3339.7,3339.3,0.29997]
[1735597242223,0.29995,3339.6,3339.3,0.29997]
[1735597242426,2.26754196,3339.8,3339.6,0.29995]
[1735597242624,0.29992,3340.0,3339.2,42.1139]
[1735597242821,0.29991,3340.0,3339.2,42.1139]
[1735597243025,5.47534196,3340.1,3339.2,42.1139]
[1735597243523,5.47534196,3340.1,3339.9,0.29991]
[1735597243728,5.47534196,3340.1,3339.2,42.86385]
[1735597243729,7.37212,3340.6,3340.0,1.2726]
[1735597244128,7.67198,3340.6,3340.3,0.29988]
[1735597244631,0.29986,3340.5,3340.2,0.29988]
[1735597244821,0.29986,3340.5,3340.3,0.29988]
[1735597245822,0.29986,3340.5,3340.1,2.5864]
[1735597246023,0.29986,3340.5,3340.3,0.29988]
[1735597246220,0.29986,3340.5,3340.1,2.5864]
[1735597246531,3.2078,3340.6,3340.5,0.29986]
[1735597246726,2.56736196,3341.0,3340.1,2.5864]
[1735597246727,2.26754196,3341.3,3340.4,3.2078]
[1735597246933,2.56734196,3341.3,3341.0,0.29981]
[1735597247233,0.2998,3341.2,3340.8,3.2078]
[1735597247432,2.26754196,3341.3,3340.8,3.2078]
[1735597247631,0.29983,3340.9,3340.8,3.2078]
[1735597247925,0.29983,3340.9,3340.5,40.8]
[1735597247926,0.29985,3340.6,3340.5,3.2078]
[1735597248330,8.74654196,3340.6,3340.1,3.2078]
[1735597248526,0.29995,3339.6,3339.0,0.29999]
[1735597248835,2.56751196,3339.4,3339.1,0.29998]
[1735597249023,3.2078,3339.6,3338.8,1.3353]
[1735597249228,4.16432,3340.0,3339.1,3.2078]
[1735597249229,9.63966196,3340.0,3339.1,3.2078]
[1735597249428,5.47534196,3340.0,3339.1,3.2078]
[1735597249629,5.77525196,3340.0,3339.6,0.29994]
[1735597249932,5.47534196,3340.0,3339.7,2.84843]
[1735597250235,5.77525196,3340.0,3339.7,2.84843]
[1735597250434,0.29992,3339.9,3339.7,2.5485]
[1735597250732,0.29992,3339.9,3339.7,2.84843]
[1735597251728,5.47534196,3340.0,3339.7,2.5485]
[1735597251927,5.77526196,3340.0,3339.7,2.84843]
[1735597252128,5.77526196,3340.0,3339.7,2.5485]
[1735597252129,0.29993,3339.9,3339.7,2.5485]
[1735597252322,0.29993,3339.9,3339.7,2.84843]
[1735597253734,5.77525196,3340.0,3339.7,2.5485]
[1735597254229,2.26754196,3340.3,3339.7,2.5485]
[1735597254436,5.77520196,3340.6,3339.9,0.29991]
[1735597254653,5.47534196,3340.6,3339.8,1.2273]
[1735597254934,5.47534196,3340.6,3339.9,44.0078]
[1735597255139,5.47534196,3340.6,3340.3,0.29987]
[1735597255332,5.47534196,3340.6,3340.4,2.5097]
[1735597255333,3.50765,3340.6,3340.4,2.5097]
[1735597255741,2.26754196,3340.9,3340.5,0.29986]
[1735597256040,2.26754196,3340.9,3340.6,0.29985]
[1735597256442,0.29978,3341.4,3341.0,0.29982]
[1735597256641,0.29978,3341.4,3341.1,2.5097]
[1735597256943,0.29978,3341.4,3341.1,2.80951]
[1735597257341,5.47534196,3341.5,3341.1,2.5097]
[1735597257640,0.2998,3341.2,3341.1,2.5097]
[1735597258430,2.56734196,3341.2,3341.1,2.5097]
[1735597259743,2.26754196,3341.2,3341.1,2.5097]
[1735597260043,3.2078,3341.5,3341.1,2.80952]
[1735597260044,0.2998,3341.4,3341.1,2.80952]
[1735597260234,5.47534196,3341.5,3341.1,2.5097]
[1735597260235,0.2998,3341.3,3341.1,2.5097]
[1735597260540,0.2998,3341.3,3340.5,3.2078]
[1735597260541,2.26754196,3341.2,3340.5,3.2078]
[1735597260744,0.29986,3340.7,3340.5,1.2495]
[1735597261745,0.29984,3340.8,3340.5,1.2495]
[1735597262250,0.29984,3340.9,3340.5,1.54936]
[1735597262631,0.29984,3340.9,3340.6,0.29986]
[1735597264340,0.29984,3340.9,3340.7,0.29985]
[1735597266346,3.2078,3341.1,3340.5,1.2495]
[1735597266546,0.29985,3340.7,3340.5,1.54936]
[1735597267844,0.29984,3340.8,3340.5,1.54936]
[1735597268444,3.2078,3341.1,3340.5,1.54936]
[1735597268950,0.29985,3340.8,3340.6,0.29985]
[1735597270646,3.2078,3341.1,3340.5,1.2495]
[1735597270647,0.29986,3340.6,3340.5,1.2495]
[1735597270844,2.26754196,3340.9,3340.5,1.2495]
[1735597271046,2.26754196,3340.9,3340.5,1.54937]
[1735597271047,0.29985,3340.7,3340.5,1.54937]
[1735597271448,2.26754196,3340.6,3340.3,0.29988]
[1735597271748,0.29987,3340.5,3340.3,0.29988]
[1735597273354,2.56740196,3340.6,3340.4,0.29987]
[1735597273745,2.26754196,3340.6,3340.4,0.29987]
[1735597273944,3.2078,3340.7,3340.6,0.29986]
[1735597275054,3.50765,3340.7,3340.5,0.29986]
[1735597275257,0.29987,3340.5,3340.3,0.29988]
[1735597275450,3.2078,3340.7,3340.1,1.2136]
[1735597275752,3.2078,3340.7,3340.6,0.29986]
[1735597277350,0.29987,3340.5,3340.3,0.29988]
[1735597277547,3.50765,3340.7,3340.1,1.2136]
[1735597277753,3.50766,3340.7,3340.4,0.29987]
[1735597278350,3.2078,3340.7,3340.5,0.29986]
[1735597278649,3.2078,3340.7,3340.1,1.2136]
[1735597278853,3.2078,3340.7,3340.6,0.29986]
[1735597280353,3.2078,3341.1,3340.6,40.8]
[1735597280651,3.2078,3341.1,3341.0,0.29982]
[1735597281046,2.26754196,3341.8,3341.4,0.29978]
[1735597281047,3.2078,3341.5,3341.4,0.29978]
[1735597282051,8.07506994,3342.4,3341.8,0.29975]
[1735597282052,3.2078,3341.9,3341.8,0.29975]
[1735597282244,5.51114382,3342.3,3342.2,0.29972]
[1735597282961,3.51544382,3342.3,3342.2,0.29972]
[1735597283148,0.30764382,3342.3,3342.2,0.29972]
[1735597283349,3.2078,3343.1,3342.0,2.26754196]
[1735597283350,6.676717,3343.1,3342.0,2.26754196]
[1735597283549,6.676717,3343.1,3342.7,0.29967]
[1735597283749,6.676717,3343.1,3342.6,0.29968]
[1735597283953,6.676717,3343.1,3342.2,40.8]
[1735597283954,6.676717,3343.1,3342.7,0.29967]
[1735597284354,6.676717,3343.1,3343.0,0.29964]
[1735597285158,3.2078,3343.1,3343.0,0.29964]
[1735597285753,3.2078,3343.6,3343.0,40.8]
[1735597285960,3.2078,3343.6,3343.3,0.29961]
[1735597286359,3.2078,3343.6,3343.1,2.4764]
[1735597286556,3.2078,3343.6,3343.1,2.77603]
[1735597286759,5.47534196,3343.6,3343.1,2.77603]
[1735597287059,5.47534196,3343.6,3343.2,0.29963]
[1735597287465,5.47534196,3343.6,3343.1,2.4764]
[1735597287466,3.2078,3343.6,3343.1,2.4764]
[1735597287653,3.2078,3343.6,3343.5,0.2996]
[1735597288759,0.29953,3344.3,3343.8,0.29957]
[1735597289161,3.2078,3344.4,3343.4,1.2342]
[1735597289370,3.50732,3344.4,3343.8,0.29957]
[1735597289564,3.50732,3344.4,3343.8,0.29956]
[1735597289774,3.2078,3344.4,3343.4,1.2342]
[1735597290070,0.2996,3343.5,3343.1,2.4764]
[1735597290268,0.29963,3343.2,3343.1,2.4764]
[1735597290467,0.29964,3343.1,3342.9,3.2078]
[1735597290672,3.2078,3343.0,3342.5,7.2319604]
[1735597290871,0.29967,3342.8,3342.5,7.2319604]
[1735597291173,0.29968,3342.7,3342.5,7.2319604]
[1735597291775,0.29968,3342.7,3342.5,2.543]
[1735597291962,5.47534196,3343.0,3342.2,3.2078]
[1735597292162,0.29972,3342.2,3341.9,4.0188]
[1735597292371,2.92804447,3342.4,3341.6,7.8967604]
[1735597292568,0.29976,3341.7,3341.6,4.6889604]
[1735597292772,3.50756,3341.7,3341.6,4.6889604]
[1735597292976,0.29977,3341.6,3341.5,0.00313369]
[1735597293776,3.2078,3341.7,3341.5,0.00313369]
[1735597294073,0.29977,3341.6,3341.5,0.00313369]
[1735597295770,1.50917,3341.6,3341.5,0.00313369]
[1735597295969,4.43721447,3341.6,3341.5,0.00313369]
[1735597297859,1.50917,3341.6,3341.5,0.00313369]
[1735597298156,3.2078,3341.7,3341.5,0.00313369]
[1735597298473,3.50756,3341.7,3341.6,40.8]
[1735597300377,0.29977,3341.6,3341.5,0.00313369]
[1735597300574,3.22781447,3341.6,3341.5,0.00313369]
[1735597302685,3.22781447,3341.6,3340.8,0.29983]
[1735597302686,0.29981,3341.2,3340.8,41.09983]
[1735597302884,0.29983,3340.9,3340.8,40.8]
[1735597303179,0.29989,3340.3,3340.0,3.50771]
[1735597303379,0.29989,3340.3,3340.0,3.2078]
[1735597304073,3.2078,3340.6,3340.0,3.2078]
[1735597304485,3.2078,3340.6,3340.1,40.8]
[1735597305082,0.29987,3340.5,3340.1,40.8]
[1735597305280,3.2078,3340.6,3340.1,40.8]
[1735597305583,3.50769,3340.2,3340.1,40.8]
[1735597308687,3.2078,3340.6,3340.1,40.8]
[1735597308890,0.29988,3340.5,3340.1,41.0999]
[1735597309290,0.29988,3340.5,3340.2,0.29989]
[1735597309489,3.2078,3340.6,3340.1,41.0999]
[1735597309692,0.29988,3340.4,3340.1,41.0999]
[1735597310288,3.2078,3340.6,3340.1,41.0999]
[1735597310485,0.29988,3340.4,3340.2,0.29989]
[1735597310689,3.2078,3340.6,3340.1,40.8]
[1735597310891,3.2078,3340.6,3340.1,41.0999]
[1735597311090,0.29989,3340.3,3340.1,41.0999]
[1735597312492,0.29989,3340.2,3340.1,41.0999]
[1735597312694,3.2078,3340.6,3340.1,41.0999]
[1735597313194,0.29989,3340.3,3340.1,41.0999]
[1735597313492,0.01268533,3340.4,3340.1,41.0999]
[1735597313793,0.29989,3340.2,3339.7,1.2962]
[1735597313986,0.31260533,3340.0,3339.7,1.2962]
[1735597314180,0.31260533,3340.0,3339.8,41.09992]
[1735597314987,0.01268533,3339.9,3339.8,40.8]
[1735597317292,0.01268533,3339.9,3339.8,41.09993]
[1735597317793,0.31260533,3339.9,3339.8,40.8]
[1735597318594,0.29993,3339.8,3339.7,1.2962]
[1735597318995,0.29993,3339.8,3339.7,42.0962]